Workbook

Sheet Инвентарный номер ПервыйЭтап
A1: 0.7937962963 | B1: Наименование | C1: НаименованиеПолное | D1: ГруппаОС | E1: Комментарий | F1: ТехническоеМесто | G1: ТехническиеХарактеристики | H1: МОЛ | I1: ГЕМ | K1: 1-ый этап. Высвечивается две кнопки "Выбор инвентарного номера" и "Завершить ввод" (4-ый этап), при этом последняя кнопка присутствует на каждом листе книги
A2: 065455 | B2: Автобус ASIA АМ818 COSMOS | C2: Автобус ASIA АМ818 COSMOS | D2: Транспортные средства | E2: Автобус ASIA АМ818 COSMOS | F2: 825 | G2: Автобус ASIA АМ818 COSMOS | H2: Иваныч | I2: СлужГЕМ | K2: Необходимо чтобы с помощью кнопки "Выбор Инвентарного номера ремонтируемого оборудования" производился отбор одного инвентарного номера
A3: 065456 | B3: Автобус KIA PREGIO | C3: Автобус KIA PREGIO | D3: Транспортные средства | E3: Автобус KIA PREGIO | F3: 825 | G3: Автобус KIA PREGIO | H3: Иваныч | I3: СлужГЕМ | K3: и после нажатия данной кнопки, в листе "Акт", добавляется новая строка в Разделе "Трудовые затраты" с выбранным в этом листе номером в соответствующей графе (3а) Акта
A4: 065463 | B4: Автобус ЛиАЗ 525653 | C4: Автобус ЛиАЗ 525653 | D4: Транспортные средства | E4: Автобус ЛиАЗ 525653, цвет кузова белый, зеленый, гос. № Т503КВ | F4: 825 | G4: Автобус ЛиАЗ 525653, цвет кузова белый, зеленый, гос. № Т503КВ | H4: Иваныч | I4: СлужГЕМ
A5: 065464 | B5: Автобус ЛиАЗ 525653 | C5: Автобус ЛиАЗ 525653 | D5: Транспортные средства | E5: Автобус ЛиАЗ 525653, цвет кузова белый, зеленый, гос. № Т504КВ | F5: 825 | G5: Автобус ЛиАЗ 525653, цвет кузова белый, зеленый, гос. № Т504КВ | H5: Иваныч | I5: СлужГЕМ
A6: 065465 | B6: Автобус ЛиАЗ 525653 | C6: Автобус ЛиАЗ 525653 | D6: Транспортные средства | E6: Автобус ЛиАЗ 525653, цвет кузова белый, зеленый, гос. № Т505КВ | F6: 825 | G6: Автобус ЛиАЗ 525653, цвет кузова белый, зеленый, гос. № Т505КВ | H6: Иваныч | I6: СлужГЕМ
A7: 065470 | B7: Автобус ЛиАЗ 525653 | C7: Автобус ЛиАЗ 525653 | D7: Транспортные средства | E7: Автобус ЛиАЗ 525653, Идентификационный номер (VIN) XTY525653B0023847, двигатель Cummins 6ISBe245B 87175787, цвет белый-зеленый, мощность двигателя 245 | F7: 825 | G7: Автобус ЛиАЗ 525653, Идентификационный номер (VIN) XTY525653B0023847, двигатель Cummins 6ISBe245B 87175787, цвет белый-зеленый, мощность двигателя 245 | H7: Иваныч | I7: СлужГЕМ
A8: 065450 | B8: Автобус ЛИАЗ-667 | C8: Автобус ЛИАЗ-667 | D8: Транспортные средства | E8: Автобус ЛИАЗ-667 | F8: 825 | G8: Автобус ЛИАЗ-667 | H8: Иваныч | I8: СлужГЕМ

Sheet Свод смет 2 этап
A1: Свод смет | D1: После выбора инвентарного номера, автоматически высвечивается сообщение: "Выбор сметы!" И становится активным данный лист (либо окно со списком смет, либо можно создать выпадающий список в Акте в графе 2). Где по аналагичному алгоритму 1-го этапа, производится уже выбор Сметы (нужно создать КНОПКУ либо ОКНО со списком смет). Номер сметы проставляется , в графе 2 Акта, в той же вновь созданной строке (без добавления новой строки), где занесен выбранный по 1-му этапу инвентарный номер
A2: № сметы | B2: Наименование | D2: После выбора номера сметы становится активным лист соответствующей сметы (Сметы_№1 либо Смета №2)
A3: Смета_№1
A4: Смета_№2

Sheet Смета_№1
A1: СМЕТА №1 | J1: После выбора номера данного ЛИСТА становится активным лист (Сметы_№1) - 2-ой этап | L1: аналагично Смете №2
A2: планируемых работ по техническому обслуживанию ТВО в 2013 г. | J2: Здесь по тому же алгоритму выбирается позиция сметы с автоматическим вводом значений выбранной позиции ( гр.1, 3, 4, 5, 7) по соответствующим графам в Акте, КРОМЕ ввода объема выполненных работ (гр 6), для которого высвечивается ОКНО ввода значений, либо ввод значений производится непосредственно в Акте, НО ОБЯЗАТЕЛЬНО после ввода становится активным ВНОВЬ этот лист - 3-ий этап
J3: По 3-му этапу, алгоритм остается прежним КРОМЕ ТОГО, ЧТО: 1) Выбираются МАТЕРИАЛЫ; 2) значения Сметы отражаются в Разделе "Материальные затраты"; 3) При этом ввод значений производится каждый раз в новой строке Акта
A4: Номер позиции сметы | B4: Шифр затрат | C4: Наименование работ | D4: Обоснование цены | E4: Ед-ца измер. | F4: Объем выполненных работ/ количество | G4: трудоемкость на ед., чел./час | H4: трудоемкость на ед., чел./час
A5: 1 | B5: 2 | C5: 3 | D5: 4 | E5: 5 | F5: 6 | G5: 7 | H5: 8 | J5: 4-ый этап - кнопка "Завершить ввод", которая завершает ввод позиций сметы и возвращает в лист "Инвентарный номер"
A6: Раздел 1. ТО маслосистем турбоагрегатов
A7: 1 | C7: Ремонт фильтров ГМБ | D7: БЦ2-011307-0102 | E7: компл | F7: 1 | G7: 1405 | H7: =F7*G7 -> 1405
A8: 2 | C8: Замена сетки фильтра ГМБ с ее изготовлением | D8: БЦ2-011308-0102 | E8: шт | F8: 1 | G8: 1354 | H8: =F8*G8 -> 1354
A9: 3 | C9: Снятие (установка) крышек маслоочистительной установки, осмотр, очистка узлов ПСМ1-3000 | D9: БЦ2-011310-0101 | E9: установка | F9: 1 | G9: 3513 | H9: 3513
A10: 4 | C10: Ремонт фильтр-пресса | D10: БЦ2-011311-0101 | E10: шт | F10: 1 | G10: 702 | H10: 702
A11: 5 | C11: Ремонт фильтров МНУГ | D11: БЦ2-011307-0101 | E11: компл | F11: 4 | G11: 571 | H11: =F11*G11 -> 2284
A12: 6 | C12: Продувка сеток ГМБ | D12: БЦ14-010303-0101 Доп. 1 | E12: сетка | F12: 4 | G12: 11 | H12: =F12*G12 -> 44
A13: 7 | C13: Ремонт поплавка ГМБ | D13: БЦ2-011305-0101 | E13: шт | F13: 1 | G13: 1230 | H13: =F13*G13 -> 1230
A14: 8 | C14: Ремонт маслоуказателя ГМБ | D14: БЦ2-011306-0101 | E14: шт | F14: 1 | G14: 1186 | H14: =F14*G14 -> 1186
A15: 9 | C15: Ремонт эксгаустера с проверкой состояния подшипников и зазоров между крыльчаткой и кожухом | D15: БЦ2-011304-0101 | E15: шт | F15: 1 | G15: 2811 | H15: =F15*G15 -> 2811
C16: Итого по маслосистемам : | H16: =SUM(H7:H15) -> 14529
C17: Поправочный коэффициент с учетом вредности : | D17: 1.459 | H17: =H16*D17 -> 21197.811
A18: Раздел 2. ТО вакуумных систем турбоагрегатов
A19: =+A15+1 -> 10 | C19: Устранение присосов в вакуумную систему методом наложения шва электросваркой | D19: БЦ1-070101-0201 | E19: пм шва | F19: 3 | G19: 95 | H19: 285
C20: Итого по вакуумным системам : | H20: =H19 -> 285
C21: Поправочный коэффициент с учетом вредности : | D21: 1.616 | H21: =H20*D21 -> 460.56
A22: Раздел 3. ТО арматуры вакуумных систем турбоагрегатов
A23: =+A19+1 -> 11 | C23: Замена набивки сальниковых уплотнений арматуры вакуумной системы : ДУ 20мм | D23: БЦ3-030601-0101 | E23: шт | F23: 8 | G23: 71 | H23: 568
A24: =+A23+1 -> 12 | C24: Замена набивки сальниковых уплотнений арматуры вакуумной системы: ДУ 50мм | D24: БЦ3-030601-0201 | E24: шт | F24: 8 | G24: 100 | H24: 800
A25: =+A24+1 -> 13 | C25: Замена набивки сальниковых уплотнений арматуры вакуумной системы: ДУ 100мм | D25: БЦ3-030601-0301 | E25: шт | F25: 6 | G25: 128 | H25: 768
A26: =+A25+1 -> 14 | C26: Замена набивки сальниковых уплотнений арматуры вакуумной системы: ДУ 150мм | D26: БЦ3-030601-0401 | E26: шт | F26: 6 | G26: 171 | H26: 1026
A27: =+A26+1 -> 15 | C27: Замена набивки сальниковых уплотнений арматуры вакуумной системы: ДУ свыше 250мм | D27: БЦ3-030601-0501 | E27: шт | F27: 4 | G27: 213 | H27: 852
A28: =+A27+1 -> 16 | C28: Замена стекол водоуказательных приборов ПВД, ПНД, ПС-50, ПН-100, конденсаторов турбины, БНТ, гидрозатворов, в вакуумном бачке на месте установки: 2 шт. | D28: БЦ3-020202-0102 | E28: шт | F28: 4 | G28: 850 | H28: 3400
C29: Итого по арматуре : | H29: =SUM(H23:H28) -> 7414
C30: Поправочный коэффициент с учетом вредности : | D30: 1.616 | H30: =H29*D30 -> 11981.024
C31: Итого по разделам 1-3 : | H31: =H17++H21+H30 -> 33639.395
C32: 33639.4*6*12*0,67 | H32: =H31*12*0.67 -> 270460.7358
C33: Итого по смете: | H33: =+H32 -> 270460.7358
C34: Материалы на ремонт для освоения хозяйственным способом:
A35: 1 | C35: Болт | D35: М8х40 | E35: кг | F35: 0.3333333333 | G35: 75 | H35: 900
A36: 2 | C36: Болт | D36: М10х60 | E36: кг | F36: 0.5 | G36: 75 | H36: 1350
A37: 3 | C37: Болт | D37: М12х60 | E37: кг | F37: 1.333333333 | G37: 75 | H37: 1800
A38: 4 | C38: Гайка | D38: М8 | E38: кг | F38: 0.05 | G38: 75 | H38: 135
A39: 5 | C39: Гайка | D39: М10 | E39: кг | F39: 0.06666666667 | G39: 75 | H39: 180
A40: 6 | C40: Гайка | D40: М12 | E40: кг | F40: 0.1333333333 | G40: 75 | H40: 225
A41: 7 | C41: Герметик | D41: силиконовый | E41: кг | F41: 0.8 | G41: 420 | H41: =F41*G41 -> 336
A42: 8 | C42: Графит | D42: чешуйчатый | E42: кг | F42: 0.5 | G42: 500 | H42: 250
A43: 9 | C43: Жидкость промывоч. | D43: керосин | E43: кг | F43: 5 | G43: 26 | H43: 130
A44: 10 | C44: Круг отрезной | D44: 180х3х32 | E44: шт | F44: 1 | G44: 150 | H44: 150
A45: 11 | C45: Круг шлиф. | D45: АПП 150х20х32 | E45: шт | F45: 1 | G45: 120 | H45: 120
A46: 12 | C46: Набивка сальниковая | D46: АП 8х8 | E46: кг | F46: 3 | G46: 170 | H46: 510
A47: 13 | C47: Набивка сальниковая | D47: АП 10х10 | E47: кг | F47: 4 | G47: 170 | H47: 680
A48: 14 | C48: Набивка сальниковая | D48: АП 12х12 | E48: кг | F48: 5 | G48: 170 | H48: 850
A49: 15 | C49: Набивка сальниковая | D49: АП 14х14 | E49: кг | F49: 6 | G49: 170 | H49: 1020
A50: 16 | C50: Набивка сальниковая | D50: АП 16х16 | E50: кг | F50: 7 | G50: 170 | H50: 1190
A51: 17 | C51: Паронит | D51: ПМБ δ=1.5 | E51: кг | F51: 4 | G51: 130 | H51: 520
A52: 18 | C52: Паронит | D52: ПМБ δ=2 | E52: кг | F52: 5 | G52: 130 | H52: 650
A53: 19 | C53: Паронит | D53: ПМБ δ=3 | E53: кг | F53: 6 | G53: 130 | H53: 780
A54: 20 | C54: Паронит | D54: ПОН-Б δ=1 | E54: кг | F54: 4 | G54: 120 | H54: 480
A55: 21 | C55: Паронит | D55: ПОН-Б δ=2 | E55: кг | F55: 5 | G55: 120 | H55: 600
A56: 22 | C56: Паронит | D56: ПОН-Б δ=3 | E56: кг | F56: 6 | G56: 120 | H56: 720
A57: 23 | C57: Паронит | D57: ПОН-Б δ=4 | E57: кг | F57: 7 | G57: 120 | H57: 840
A58: 24 | C58: Полотно ножовочное | E58: шт | F58: 30 | G58: 15 | H58: 450
A59: 25 | C59: Припой | D59: ПОС-60 | E59: кг | F59: 0.2 | G59: 350 | H59: 70
A60: 26 | C60: Пропан | E60: кг | F60: 2 | G60: 23 | H60: 46
A61: 27 | C61: Резина лист | D61: 2Н-1С-МБС-2 | E61: кг | F61: 5.333333333 | G61: 100 | H61: 533.3333333
A62: 28 | C62: Резина лист | D62: 2Н-1С-МБС-3 | E62: кг | F62: 5.833333333 | G62: 100 | H62: 583.3333333
A63: 29 | C63: Резина лист | D63: 2Н-1С-МБС-4 | E63: кг | F63: 6.166666667 | G63: 100 | H63: 616.6666667
A64: 30 | C64: Резина лист | D64: 2Н-1С-МБС-5 | E64: кг | F64: 6.666666667 | G64: 100 | H64: 666.6666667
A65: 31 | C65: Резина лист | D65: 2Н-1С-МБС-6 | E65: кг | F65: 7 | G65: 100 | H65: 700
A66: 32 | C66: Салфетка техническая | E66: шт | F66: 30 | G66: 31 | H66: 930
A67: 33 | C67: Сетка латунная | D67: 0,6 х 0,6 | E67: м2 | F67: 0.8333333333 | G67: 280 | H67: 233.3333333
A68: 34 | C68: Сетка латунная | D68: 0,25 х 0,25 | E68: м2 | F68: 0.8333333333 | G68: 280 | H68: 233.3333333
A69: 35 | C69: Слюда пластина | E69: шт | F69: 300 | G69: 3 | H69: 900
A70: 36 | C70: Смазка консистентная | D70: Солидол-С | E70: кг | F70: 3 | G70: 46 | H70: 138
A71: 37 | C71: Смазка консистентная | D71: Циатим-201 | E71: кг | F71: 3 | G71: 56 | H71: 168
A72: 38 | C72: Трубка стекляная | D72: кварц. Ø=12 | E72: м | F72: 10 | G72: 75 | H72: 750
A73: 39 | C73: Трубка стекляная | D73: кварц. Ø=16 | E73: м | F73: 10 | G73: 75 | H73: 750
A74: 40 | C74: Шкурка шлиф. | D74: №0-5 | E74: м2 | F74: 3.333333333 | G74: 95 | H74: 316.6666667
A75: 41 | C75: Ветошь | E75: м | F75: 6.666666667 | G75: 35 | H75: =F75*G75 -> 233.3333333
A76: 42 | C76: Электроды | D76: УОНИ-13/55 Ø4 | E76: кг | F76: 8.333333333 | G76: 75 | H76: 625
C77: Итого материалам на ремонт для освоения хозяйственным способом: | H77: =SUM(H35:H76) -> 23359.66667
C78: Итого по материалам : | H78: =H77 -> 23359.66667
C79: Всего : | H79: =H33+H78 -> 293820.4025
C80: НДС 18%: | H80: =H79*0.18 -> 52887.67244
C81: ВСЕГО с НДС: | H81: =SUM(H79:H80) -> 346708.0749
C82: Справочно:
C83: Стоимость услуг подрядных организаций по ремонту оборудования всего: | H83: 0
C84: Стоимость работ хозяйственным способом | H84: =H33 -> 270460.7358
C85: Давальческие материалы для освоения подрядным способом | H85: 0
C86: Материалы на ремонт для освоения хозяйственным способом | H86: =H77 -> 23359.66667

Sheet Смета_№2
A1: СМЕТА № 2 | J1: После выбора номера данного ЛИСТА становится активным лист (Сметы_№2) - 2-ой этап | L1: аналагично Смете №1
A2: планируемых работ по среднему и текущему ремонту кислородно-компрессорного оборудования в 2013 г. | J2: Здесь по тому же алгоритму выбирается позиция сметы с автоматическим вводом значений выбранной позиции ( гр.1, 3, 4, 5, 7) по соответствующим графам в Акте, КРОМЕ ввода объема выполненных работ (гр 6), для которого высвечивается ОКНО ввода значений, либо ввод значений производится непосредственно в Акте, НО ОБЯЗАТЕЛЬНО после ввода становится активным ВНОВЬ этот лист - 3-ий этап
C3: (вид ремонта) | D3: (наименование оборудования) | J3: По 3-му этапу, алгоритм остается прежним КРОМЕ ТОГО, ЧТО: 1) Выбираются МАТЕРИАЛЫ; 2) значения Сметы отражаются в Разделе "Материальные затраты"; 3) При этом ввод значений производится каждый раз в новой строке Акта
A4: № п/п | B4: Шифр затрат | C4: Наименование работ | D4: Обоснование цены | E4: Ед-ца измер. | F4: Кол-во | G4: Ст-ть ед., руб. | H4: Стоимость всего, руб.
A5: 1 | B5: 2 | C5: 3 | D5: 4 | E5: 5 | F5: 6 | G5: 7 | H5: 8 | J5: 4-ый этап - кнопка "Завершить ввод", которая завершает ввод позиций сметы и возвращает в лист "Инвентарный номер"
A6: Раздел 1. Средний ремонт кислородно-компрессорного оборудования
A7: 1 | C7: Ремонт компрессоров горизонтальных: типа 3Г-50/200 (2ВМ2,5-5/220) | D7: БЦ18-010501-0401 | E7: компр. | F7: 2 | G7: 76757 | H7: =F7*G7*0.8 -> 122811.2
A8: 2 | C8: Ремонт компрессоров вертикальных угловых двухрядных крейцкопфных: типа ВП-30/8, 205ВП-30/8, 205ГП-30/8, 305ВП-30/8 | D8: БЦ18-010201-1501 | E8: компр. | F8: 2 | G8: 49093 | H8: =F8*G8*0.8 -> 78548.8
A9: 3 | C9: Ремонт компрессоров горизонтальных: типа 5Г-100/8(2ВМ10-63/8) | D9: БЦ18-010501-0801 | E9: компр. | F9: 1 | G9: 95726 | H9: =F9*G9*0.8 -> 76580.8
C10: Итого: | H10: =SUM(H7:H9) -> 277940.8
C11: Поправочный коэффициент с учетом вредности : | D11: 1.462 | H11: =H10*D11 -> 406349.4496
A12: Раздел 2. Текущий ремонт кислородно-комрессорного оборудования
A13: =+A9+1 -> 4 | C13: Ремонт компрессоров горизонтальных: типа 3Г-50/200(2ВМ2,5-5/220) | D13: БЦ18-010501-0401 | E13: компр. | F13: 4 | G13: 76757 | H13: =F13*G13*0.6 -> 184216.8
A14: =+A13+1 -> 5 | C14: Ремонт компрессоров вертикальных угловых двухрядных крейцкопфных: типа ВП-30/8, 205ВП-30/8, 205ГП-30/8, 305ВП-30/8 | D14: БЦ18-010201-1501 | E14: компр. | F14: 4 | G14: 49093 | H14: =F14*G14*0.6 -> 117823.2
A15: =+A14+1 -> 6 | C15: Ремонт компрессоров горизонтальных: типа 5Г-100/8(2ВМ10-63/8) | D15: БЦ18-010501-0801 | E15: компр. | F15: 2 | G15: 95726 | H15: =F15*G15*0.4 -> 76580.8
A16: 7 | C16: Ремонт блока очистки воздуха: тип установки КЖКАЖ-0,25 | D16: БЦ18-030101-0102 | E16: шт | F16: 2 | G16: 50103 | H16: 40082.4
A17: 8 | C17: Ремонт блока разделения воздуха: тип установки КЖКАЖ-0,25 | D17: БЦ18-030101-0202 | E17: шт | F17: 2 | G17: 71048 | H17: =F17*G17*0.41 -> 58259.36
A18: 9 | C18: Ремонт турбодетандера: тип установки КЖКАЖ-0,25 | D18: БЦ18-030101-0302 | E18: шт | F18: 5 | G18: 11065 | H18: =F18*G18*0.400199 -> 22141.00968
A19: 10 | C19: Ремонт насоса сжиженого газа: тип установки КЖКАЖ-0,25 | D19: БЦ18-030101-0502 | E19: шт | F19: 5 | G19: 15282 | H19: =F19*G19*0.4 -> 30564
A20: 11 | C20: Ремонт холодильной машины (блок охлаждения воздуха): тип установки КЖКАЖ-0,25 | D20: БЦ18-030101-0602 | E20: шт | F20: 4 | G20: 18837 | H20: 30139.2
A21: 12 | C21: Ремонт компрессоров V-образных типа ВШВ 3/100 (АКА-150СВ) | D21: БЦ18-010301-1301 | E21: шт | F21: 6 | G21: 39254 | H21: 94209.6
C22: Итого: | H22: =SUM(H13:H21) -> 654016.3697
C23: Поправочный коэффициент с учетом вредности : | D23: 1.462 | H23: =H22*D23 -> 956171.9325
C24: Итого по разделам 1-2 : | H24: =H11+H23 -> 1362521.382
C25: Итого по смете: | H25: =H24 -> 1362521.382
C26: Материалы на ремонт для освоения хозяйственным способом:
A27: 1 | C27: Насос житкого кислорода | D27: 22НСГ0,025/20 | E27: шт | F27: 0 | G27: 18500 | H27: =F27*G27 -> 0
A28: 3 | C28: Клапан I ступени | D28: ПИК-125-1,0Б | E28: шт | F28: 6 | G28: 2695 | H28: 16170
A29: 4 | C29: Клапан II ступени | D29: ПИК-125-1,0Б | E29: шт | F29: 2 | G29: 2695 | H29: 5390
A30: 5 | C30: Клапан прямоточный I ступени | D30: ПИК 165-2,5А | E30: шт | F30: 6 | G30: 3000 | H30: 18000
A31: 6 | C31: Клапан прямоточный II ступени | D31: ПИК 150-2,5А | E31: шт | F31: 8 | G31: 2000 | H31: 16000
A32: 7 | C32: Клапан вентиля кисл. баллона | D32: ВК-94-01 | E32: шт | F32: 50 | G32: 88.98 | H32: 4449
A33: 8 | C33: Муфта вентиля кисл.баллона | D33: ВК-94-01 | E33: шт | F33: 30 | G33: 39 | H33: 1170
A34: 9 | C34: Вкладыш шатун.подш. | D34: ВК-108,01 | E34: шт | F34: 4 | G34: 3000 | H34: 12000
A35: 10 | C35: Вкладыш шатун.подш. | D35: ВК-108,02 | E35: шт | F35: 4 | G35: 3000 | H35: 12000
A36: 11 | C36: Втулка | D36: капролактанØ50 | E36: шт | F36: 5 | G36: 150 | H36: 750
A37: 16 | C37: Экспандер | D37: КК2367.01.013-01 | E37: шт | F37: 4 | G37: 320 | H37: 1280
A38: 17 | C38: Указатель жидкого кислорода и азота | D38: УЖК-5 | E38: шт | F38: 2 | G38: 8000 | H38: 16000
A39: 18 | C39: Ось крейцкопфа | D39: ИГШП715671.002 | E39: шт | F39: 2 | G39: 1348 | H39: 2696
A40: 19 | C40: Палец крейцкопфа | D40: 205/305П-3-1СБ | E40: шт | F40: 4 | G40: 3279 | H40: 13116
A41: 20 | C41: Палец | D41: КК2371.02.043 | E41: шт | F41: 1 | G41: 3114 | H41: 3114
A42: 21 | C42: Палец | D42: КК2375.02.011 | E42: шт | F42: 1 | G42: 522 | H42: 522
A43: 22 | C43: Уплотняющие резиновые кольца гильзы цилиндра I ст. | D43: 350-360-58-2-2 | E43: шт | F43: 8 | G43: 270.32 | H43: 2162.56
A44: 23 | C44: Уплотняющие резиновые кольца гильзы цилиндра II ст. | D44: 220-230-58-2-2 | E44: шт | F44: 8 | G44: 230 | H44: 1840
A45: 24 | C45: Уплотняющие резин. кольца гильзы цилиндра IV ст. | D45: 110-116-36-2-2 | E45: шт | F45: 18 | G45: 60 | H45: 1080
A46: 25 | C46: Уплотняющие резин. кольца гильзы цилиндра IV ст. | D46: 125-130-36-2-2 | E46: шт | F46: 18 | G46: 100 | H46: 1800
A47: 26 | C47: Уплотняющие резин. кольца гильзы цилиндра IV ст. | D47: 210-220-58-2-2 | E47: шт | F47: 18 | G47: 230 | H47: 4140
A48: 28 | C48: Кольцо | D48: КК2367.01.014-01 | E48: шт | F48: 14 | G48: 534 | H48: 7476
A49: 29 | C49: Кольцо резиновое | D49: ГК-0,17/45М 304-150-1-14-1 | E49: шт | F49: 2 | G49: 267 | H49: 534
A50: 30 | C50: Кольцо поршневое | D50: КК2367.01.012-01 | E50: шт | F50: 15 | G50: 484 | H50: 7260
A51: 31 | C51: Ремень | D51: Б-2000Ш | E51: шт | F51: 2 | G51: 200 | H51: 400
A52: 32 | C52: Ремень клиновой | D52: сеч.А 8,5х8х1250 | E52: шт | F52: 4 | G52: 100 | H52: 400
A53: 33 | C53: Уплотнение (прокладка) | D53: фторопласт Ø30 | E53: шт | F53: 60 | G53: 35 | H53: 2100
A54: 34 | C54: Мембрана из резины | D54: 71-8А-1-20 | E54: шт | F54: 2 | G54: 200 | H54: 400
A55: 36 | C55: Штуцер бронзовый | D55: БрОФ6,5-0,15 Ø30 | E55: шт | F55: 20 | G55: 220 | H55: 4400
A56: 37 | C56: Гайка бронзовая | D56: БрОФ7-0,2 Ø50 | E56: шт | F56: 20 | G56: 35 | H56: 700
A57: 38 | C57: Герметик | D57: силиконовый | E57: кг | F57: 1.2 | G57: 320 | H57: 384
A58: 39 | C58: Паронит | D58: ПМБ δ=2 | E58: кг | F58: 35 | G58: 112 | H58: 3920
A59: 40 | C59: Паронит | D59: ПМБ δ=3 | E59: кг | F59: 36 | G59: 112 | H59: 4032
A60: 41 | C60: Резина лист | D60: 2Н-1С-МБС-2 | E60: кг | F60: 8 | G60: 85 | H60: 680
A61: 42 | C61: Резина лист | D61: 2Н-1С-МБС-3 | E61: кг | F61: 10 | G61: 105 | H61: 1050
A62: 43 | C62: Песок перлитовый | D62: 75-100 | E62: кг | F62: 50 | G62: 320 | H62: 16000
A63: 44 | C63: Резина лист | D63: ТМКЩ-40мм | E63: кг | F63: 10 | G63: 100 | H63: 1000
A64: 45 | C64: Поршень 3 ступени | D64: ИГШП72.3595018-01 | E64: шт | F64: 1 | G64: 12000 | H64: 12000
A65: 46 | C65: Баббит | D65: Б-83 | E65: кг | F65: 48 | G65: 950 | H65: 45600
A66: 47 | C66: Станция публикатор УХЛ 4 | D66: Гост 3564-84 31-04-2 | E66: шт | F66: 2 | G66: 20000 | H66: 40000
A67: 48 | C67: Поршень 4 ступени | D67: ИГШП72.3595.019-02 | E67: шт | F67: 1 | G67: 10000 | H67: 10000
A68: 49 | C68: Поршень 5 ступени | D68: ИГШП30.6571.018 | E68: шт | F68: 1 | G68: 12000 | H68: 12000
A69: 50 | C69: Поршневое кольцо 1 ступени | D69: У330х8 | E69: шт | F69: 4 | G69: 1000 | H69: 4000
A70: 51 | C70: Поршневое кольцо 1 ступени | D70: У470 | E70: шт | F70: 4 | G70: 3000 | H70: 12000
A71: 52 | C71: Пруток медный | D71: Ø80мм | E71: кг | F71: 17 | G71: 300 | H71: 5100
A72: 53 | C72: Трубка медная | D72: 8х1мм | E72: кг | F72: 15 | G72: 107.7 | H72: 1615.5
A73: 54 | C73: Подшипник | D73: 4024113 | E73: шт | F73: 4 | G73: 400 | H73: 1600
A74: 55 | C74: Насос (публикатор) | D74: 22-8-ухл4 ост 2Г23-2-87 | E74: шт | F74: 1 | G74: 15000 | H74: 15000
C75: Итого по материалам на ремонт для освоения хозяйственным способом: | H75: =SUM(H27:H74) -> 343331.06
C76: Всего: | H76: =H25+H75 -> 1705852.442
C77: НДС 18%: | H77: =H76*0.18 -> 307053.4396
C78: ВСЕГО с НДС: | H78: =H76+H77 -> 2012905.882
C79: Справочно:
C80: Стоимость услуг подрядных организаций по ремонту оборудования всего: | H80: 0
C81: Стоимость работ хозяйственным способом | H81: =H25 -> 1362521.382
C82: Давальческие материалы для освоения подрядным способом | H82: 0
C83: Материалы на ремонт для освоения хозяйственным способом | H83: =H75 -> 343331.06

Sheet Акт
K3: Код
J4: Форма по ОКУД
B6: Инвестор | D6: ОАО "ИНТЕР РАО", г. Москва | J6: по ОКПО
B8: Заказчик (Генподрядчик) | D8: ОАО "ИНТЕР РАО", г. Москва | J8: по ОКПО
B10: Подрядчик (Субподрядчик) | J10: по ОКПО
B12: Стройка
B14: Объект
J16: Вид деятельности по ОКДП
J17: номер
J18: дата
J19: Вид операции
F21: Номер документа | G21: Дата составления | I21: Отчетный период
I22: с | J22: по
J23: =+G23 -> 0
E24: О ПРИЕМКЕ РАБОТ, ВЫПОЛНЕННЫХ ХОЗЯЙСТВЕННЫМ СПОСОБОМ*
F26: Сметная стоимость | K26: руб.
A28: Трудовые затраты
A29: Номер | E29: Наименование работ | F29: Инвентарный номер | G29: Номер единичной расценки | H29: Единица измерения | I29: объем выполненных работ | J29: трудоемкость на ед., чел./час | K29: трудоемкость на ед., чел./час
A30: по порядку | C30: сметы | D30: позиции сметы
A31: 1 | C31: 2 | D31: 2а | E31: 3 | F31: 3а | G31: 4 | H31: 5 | I31: 6 | J31: 7 | K31: 8
A32: 1 | C32: Смета_№1 | D32: 5 | E32: =OFFSET(INDIRECT($C32&"!a6"),MATCH($D32,INDIRECT($C32&"р"),0)-1,2) -> Ремонт фильтров МНУГ | F32: ='Инвентарный номер ПервыйЭтап'!A2 -> 065455 | G32: =OFFSET(INDIRECT($C32&"!a6"),MATCH($D32,INDIRECT($C32&"р"),0)-1,3) -> БЦ2-011307-0101 | H32: =OFFSET(INDIRECT($C32&"!a6"),MATCH($D32,INDIRECT($C32&"р"),0)-1,4) -> компл | J32: =OFFSET(INDIRECT($C32&"!a6"),MATCH($D32,INDIRECT($C32&"р"),0)-1,6) -> 571 | K32: =+I32*J32 -> 0 | L32: 1 этап | M32: Добавить строку | N32: Выбор инвентарного номера | O32: Выбор позиции сметы | P32: Ввод объема
A33: 1 | C33: Смета_№1 | D33: 1 | E33: =OFFSET(INDIRECT($C33&"!a6"),MATCH($D33,INDIRECT($C33&"р"),0)-1,2) -> Ремонт фильтров ГМБ | F33: =+'Инвентарный номер ПервыйЭтап'!A3 -> 065456 | G33: =OFFSET(INDIRECT($C33&"!a6"),MATCH($D33,INDIRECT($C33&"р"),0)-1,3) -> БЦ2-011307-0102 | H33: =OFFSET(INDIRECT($C33&"!a6"),MATCH($D33,INDIRECT($C33&"р"),0)-1,4) -> компл | J33: =OFFSET(INDIRECT($C33&"!a6"),MATCH($D33,INDIRECT($C33&"р"),0)-1,6) -> 1405 | K33: =+I33*J33 -> 0
A34: 1 | C34: Смета_№1 | D34: 1 | E34: =OFFSET(INDIRECT($C34&"!a6"),MATCH($D34,INDIRECT($C34&"р"),0)-1,2) -> Ремонт фильтров ГМБ | F34: =+'Инвентарный номер ПервыйЭтап'!A4 -> 065463 | G34: =OFFSET(INDIRECT($C34&"!a6"),MATCH($D34,INDIRECT($C34&"р"),0)-1,3) -> БЦ2-011307-0102 | H34: =OFFSET(INDIRECT($C34&"!a6"),MATCH($D34,INDIRECT($C34&"р"),0)-1,4) -> компл | J34: =OFFSET(INDIRECT($C34&"!a6"),MATCH($D34,INDIRECT($C34&"р"),0)-1,6) -> 1405 | K34: 0
A35: 1 | C35: Смета_№1 | D35: 1 | E35: =OFFSET(INDIRECT($C35&"!a6"),MATCH($D35,INDIRECT($C35&"р"),0)-1,2) -> Ремонт фильтров ГМБ | F35: =+'Инвентарный номер ПервыйЭтап'!A5 -> 065464 | G35: =OFFSET(INDIRECT($C35&"!a6"),MATCH($D35,INDIRECT($C35&"р"),0)-1,3) -> БЦ2-011307-0102 | H35: =OFFSET(INDIRECT($C35&"!a6"),MATCH($D35,INDIRECT($C35&"р"),0)-1,4) -> компл | J35: =OFFSET(INDIRECT($C35&"!a6"),MATCH($D35,INDIRECT($C35&"р"),0)-1,6) -> 1405 | K35: 0
K36: =+I36*J36 -> 0
K37: =+I37*J37 -> 0
K38: =+I38*J38 -> 0
K39: 0
H40: Итого | I40: Х | J40: Х | K40: =SUM(K32:K39) -> 0
A42: Материальные затраты
A43: Номер | E43: Наименование материалов | F43: Инвентарный номер | G43: Номер единичной расценки | H43: Единица измерения | I43: количество | J43: цена за единицу, руб. | K43: стоимость, руб.
A44: по порядку | B44: работы по смете | C44: сметы | D44: позиции сметы
A45: 1 | B45: 1а | C45: 2 | D45: 2а | E45: 3 | F45: 3а | G45: 4 | H45: 5 | I45: 6 | J45: 7 | K45: 8
A46: 1 | B46: =+A32 -> 1 | C46: =+C32 -> Смета_№1 | D46: 42 | E46: =OFFSET(INDIRECT($C46&"!a6"),MATCH($D46,INDIRECT($C46&"м"),0)-1,2) -> Набивка сальниковая | F46: =+F32 -> 065455 | G46: =OFFSET(INDIRECT($C46&"!a6"),MATCH($D46,INDIRECT($C46&"м"),0)-1,3) -> АП 10х10 | H46: =OFFSET(INDIRECT($C46&"!a6"),MATCH($D46,INDIRECT($C46&"м"),0)-1,4) -> кг | J46: =OFFSET(INDIRECT($C46&"!a6"),MATCH($D46,INDIRECT($C46&"м"),0)-1,6) -> 170 | K46: =+I46*J46 -> 0
K52: =+J52*I52 -> 0
H53: Итого | I53: Х | J53: Х | K53: =SUM(K46:K52) -> 0
C56: Сдал
E57: (должность) | F57: (расшифровка подписи)
C61: Принял
E62: (должность) | F62: (расшифровка подписи)
B66: Сводная таблица
B67: Инв. № | C67: ГЕМ | D67: ТМ | E67: Трудозатраты | F67: Материалы

Sheet Сводный акт списания МТР
A1: Свод по переченю материалов из Акта
A2: Материальные затраты
A3: Номер по порядку | C3: Наименование материалов | D3: Инвентарный номер | E3: Номер единичной расценки | F3: Единица измерения | G3: количество | H3: цена за единицу, руб. | I3: стоимость, руб.
A4: 1 | C4: 3 | D4: 3а | E4: 4 | F4: 5 | G4: 6 | H4: 7 | I4: 8
K5: Материалы группируются по двум признакам: 1) Наименование; 2) Инвентарный номер.
F12: Итого | G12: Х | H12: Х | I12: =SUM(I5:I11) -> 0
